[Event "GER-ch Youth U14 2019"]
[Site "Willingen"]
[Date "2019.06.11"]
[Round "4.7"]
[White "von Krosigk, Florian"]
[Black "Bui, Bao Anh Le"]
[Result "1-0"]
[ECO "B55"]
[WhiteElo "1926"]
[BlackElo "2065"]
[Annotator "NA"]
[PlyCount "69"]
[EventDate "2019.06.07"]
[EventType "swiss"]
[EventRounds "9"]
[EventCountry "GER"]
[SourceTitle "playchess.com"]
[Source "ChessBase"]
[SourceQuality "1"]
[TimeControl "40/5400+30:1800+30"]

1. e4 {[%emt 0:00:00]} c5 {[%emt 0:00:07]} 2. Nf3 {[%emt 0:00:00]} d6 {[%emt 0:00:15]} 3. d4 {[%emt 0:00:25]} cxd4 {[%emt 0:00:20]} 4. Nxd4 {[%emt 0:00:12]} Nf6 {[%emt 0:00:07]} 5. f3 {[%emt 0:00:38]} e5 {[%emt 0:01:22]} 6. Bb5+ {[%emt 0:00:15]} Bd7 {[%emt 0:01:05]} 7. Bxd7+ {[%emt 0:00:08]} Qxd7 {[%emt 0:00:12]} 8. Nf5 {[%emt 0:01:08]} d5 {[%emt 0:04:49]} 9. Bg5 {[%emt 0:01:41]} dxe4 {[%emt 0:11:55]} 10. Bxf6 {[%emt 0:02:59]} gxf6 {[%emt 0:01:43]} 11. Qxd7+ {[%emt 0:13:20]} Nxd7 {[%emt 0:00:13]} 12. fxe4 {[%emt 0:00:04]} Bb4+ {[%emt 0:01:54]} 13. c3 {[%emt 0:00:37]} Bc5 {[%emt 0:00:17]} 14. Nd2 {[%emt 0:01:34]} Nb6 {[%emt 0:10:22]} 15. Rf1 {[%emt 0:08:44]} h5 {[%emt 0:05:27]} 16. Rf3 {[%emt 0:06:13]} O-O-O {[%emt 0:33:05]} 17. O-O-O {[%emt 0:11:07]} Rhg8 {[%emt 0:03:19]} 18. g3 {[%emt 0:13:52]} Rd7 {[%emt 0:03:53]} 19. Kc2 {[%emt 0:03:33]} Rgd8 {[%emt 0:00:58]} 20. b3 {[%emt 0:02:39]} Bf8 {[%emt 0:03:23]} 21. Rff1 {[%emt 0:03:09]} Kc7 {[%emt 0:01:47]} 22. Nc4 {[%emt 0:03:36]} Rxd1 {[%emt 0:03:26]} 23. Rxd1 {[%emt 0:00:03]} Rxd1 {[%emt 0:01:08]} 24. Kxd1 {[%emt 0:00:04]} Nxc4 {[%emt 0:00:21]} 25. bxc4 {[%emt 0:00:02]} Kd7 {[%emt 0:01:16]} 26. Ke2 {[%emt 0:03:29]} Kc6 {[%emt 0:00:16]} 27. Kd3 {[%emt 0:01:46]} Kc5 {[%emt 0:00:20]} 28. h4 {[%emt 0:05:45]} a6 {[%emt 0:01:36]} 29. Ne3 {[%emt 0:07:20]} Kd6 {[%emt 0:00:38]} 30. g4 {[%emt 0:00:56]} hxg4 {[%emt 0:00:12]} 31. Nxg4 {[%emt 0:00:02]} Ke6 {[%emt 0:00:46]} 32. Ne3 {[%emt 0:00:28]} f5 {[%emt 0:00:45]} 33. exf5+ {[%emt 0:00:52]} Kf6 {[%emt 0:00:13]} 34. Ke4 {[%emt 0:00:04]} Be7 {[%emt 0:00:43]} 35. Nd5+ {[%emt 0:00:24] normal} 1-0

[Event "GER-ch Youth U14 2019"]
[Site "Willingen"]
[Date "2019.06.11"]
[Round "4.8"]
[White "Eilenberg, Jonas"]
[Black "Farokhi, Keyvan"]
[Result "1-0"]
[ECO "A43"]
[WhiteElo "1934"]
[BlackElo "1963"]
[Annotator "NA"]
[PlyCount "117"]
[EventDate "2019.06.07"]
[EventType "swiss"]
[EventRounds "9"]
[EventCountry "GER"]
[SourceTitle "playchess.com"]
[Source "ChessBase"]
[SourceQuality "1"]
[TimeControl "40/5400+30:1800+30"]

1. d4 {[%emt 0:00:00]} Nf6 {[%emt 0:00:00]} 2. Nf3 {[%emt 0:00:00]} c5 {[%emt 0:00:00]} 3. d5 {[%emt 0:00:00]} b5 {[%emt 0:00:08]} 4. c4 {[%emt 0:00:56]} g6 {[%emt 0:01:15]} 5. Nbd2 {[%emt 0:04:24]} b4 {[%emt 0:02:57]} 6. b3 {[%emt 0:00:47]} Bg7 {[%emt 0:00:27]} 7. Bb2 {[%emt 0:00:07]} O-O {[%emt 0:00:16]} 8. e4 {[%emt 0:00:46]} d6 {[%emt 0:00:48]} 9. Bd3 {[%emt 0:01:29]} Bb7 {[%emt 0:02:39]} 10. O-O {[%emt 0:01:00]} e5 {[%emt 0:00:52]} 11. dxe6 {[%emt 0:05:56]} fxe6 {[%emt 0:00:07]} 12. Ng5 {[%emt 0:00:44]} Re8 {[%emt 0:03:04]} 13. e5 {[%emt 0:16:12]} dxe5 {[%emt 0:13:39]} 14. Nde4 {[%emt 0:02:31]} Nxe4 {[%emt 0:01:22]} 15. Bxe4 {[%emt 0:00:59]} Nc6 {[%emt 0:04:45]} 16. Qxd8 {[%emt 0:01:42]} Raxd8 {[%emt 0:00:27]} 17. Rad1 {[%emt 0:00:23]} Bf6 {[%emt 0:04:38]} 18. Nf3 {[%emt 0:02:10]} Rxd1 {[%emt 0:06:47]} 19. Rxd1 {[%emt 0:00:07]} Rd8 {[%emt 0:01:54]} 20. Rxd8+ {[%emt 0:00:46]} Bxd8 {[%emt 0:00:44]} 21. Kf1 {[%emt 0:09:21]} Bc7 {[%emt 0:07:04]} 22. Bxc6 {[%emt 0:03:30]} Bxc6 {[%emt 0:00:15]} 23. Nxe5 {[%emt 0:00:15]} Be4 {[%emt 0:01:33]} 24. Nd7 {[%emt 0:02:20]} Bd3+ {[%emt 0:03:21]} 25. Ke1 {[%emt 0:01:33]} Bd6 {[%emt 0:00:51]} 26. Kd2 {[%emt 0:03:30]} Bb1 {[%emt 0:01:24]} 27. Be5 {[%emt 0:03:17]} Be7 {[%emt 0:00:07]} 28. Bb8 {[%emt 0:00:49]} a5 {[%emt 0:00:06]} 29. Ba7 {[%emt 0:00:45]} Bxa2 {[%emt 0:00:39]} 30. Bxc5 {[%emt 0:01:32]} Bg5+ {[%emt 0:03:40]} 31. Kc2 {[%emt 0:00:23]} a4 {[%emt 0:00:11]} 32. bxa4 {[%emt 0:00:12]} Bxc4 {[%emt 0:00:26]} 33. Bxb4 {[%emt 0:00:08]} Bd5 {[%emt 0:00:20]} 34. g3 {[%emt 0:01:03]} Bc6 {[%emt 0:00:24]} 35. Nc5 {[%emt 0:03:58]} Be7 {[%emt 0:00:16]} 36. a5 {[%emt 0:01:17]} Bxc5 {[%emt 0:00:09]} 37. Bxc5 {[%emt 0:00:04]} Kf7 {[%emt 0:00:12]} 38. Kc3 {[%emt 0:03:33]} Ke8 {[%emt 0:01:09]} 39. Kd4 {[%emt 0:01:00]} Kd7 {[%emt 0:00:10]} 40. Ke5 {[%emt 0:01:12]} Bd5 {[%emt 0:01:16]} 41. Be3 {[%emt 0:33:24]} Bc4 {[%emt 0:33:41]} 42. Kf6 {[%emt 0:00:32]} Bd3 {[%emt 0:00:26]} 43. Bh6 {[%emt 0:00:52]} Kc6 {[%emt 0:02:20]} 44. Kxe6 {[%emt 0:00:30]} Kb5 {[%emt 0:00:07]} 45. Kf6 {[%emt 0:01:26]} Kxa5 {[%emt 0:00:14]} 46. Kg7 {[%emt 0:00:10]} Kb5 {[%emt 0:00:32]} 47. Kxh7 {[%emt 0:00:06]} Kc5 {[%emt 0:00:29]} 48. Kg7 {[%emt 0:00:05]} Kd5 {[%emt 0:00:06]} 49. Kf6 {[%emt 0:00:28]} Ke4 {[%emt 0:04:43]} 50. Be3 {[%emt 0:00:09]} Kf3 {[%emt 0:00:27]} 51. Kg5 {[%emt 0:00:21]} Bf5 {[%emt 0:07:04]} 52. h4 {[%emt 0:00:14]} Bd7 {[%emt 0:00:13]} 53. Kxg6 {[%emt 0:00:08]} Kg4 {[%emt 0:00:04]} 54. Bf4 {[%emt 0:00:56]} Be8+ {[%emt 0:00:35]} 55. Kf6 {[%emt 0:00:11]} Kf3 {[%emt 0:00:18]} 56. Kg5 {[%emt 0:00:05]} Kxf2 {[%emt 0:00:18]} 57. h5 {[%emt 0:00:07]} Bc6 {[%emt 0:00:23]} 58. h6 {[%emt 0:00:12]} Be4 {[%emt 0:00:04]} 59. Kf6 {[%emt 0:00:04] normal} 1-0

[Event "GER-ch Youth U14 2019"]
[Site "Willingen"]
[Date "2019.06.11"]
[Round "4.9"]
[White "Simukov, Erik"]
[Black "Elsner, Robert"]
[Result "0-1"]
[ECO "B76"]
[WhiteElo "1904"]
[BlackElo "1745"]
[Annotator "NA"]
[PlyCount "58"]
[EventDate "2019.06.07"]
[EventType "swiss"]
[EventRounds "9"]
[EventCountry "GER"]
[SourceTitle "playchess.com"]
[Source "ChessBase"]
[SourceQuality "1"]
[TimeControl "40/5400+30:1800+30"]

1. e4 {[%emt 0:00:00]} c5 {[%emt 0:00:00]} 2. Nf3 {[%emt 0:00:00]} d6 {[%emt 0:00:00]} 3. d4 {[%emt 0:00:00]} cxd4 {[%emt 0:00:00]} 4. Nxd4 {[%emt 0:00:12]} Nf6 {[%emt 0:00:00]} 5. Nc3 {[%emt 0:00:24]} g6 {[%emt 0:00:00]} 6. Be3 {[%emt 0:00:58]} Bg7 {[%emt 0:00:00]} 7. f3 {[%emt 0:00:29]} O-O {[%emt 0:00:00]} 8. Qd2 {[%emt 0:00:41]} Nc6 {[%emt 0:00:00]} 9. O-O-O {[%emt 0:00:45]} d5 {[%emt 0:00:00]} 10. Qe1 {[%emt 0:01:23]} e5 {[%emt 0:00:02]} 11. Nxc6 {[%emt 0:00:47]} bxc6 {[%emt 0:00:03]} 12. exd5 {[%emt 0:00:18]} Nxd5 {[%emt 0:00:02]} 13. Bc4 {[%emt 0:01:55]} Be6 {[%emt 0:00:04]} 14. Kb1 {[%emt 0:06:07]} Qc7 {[%emt 0:14:35]} 15. Nxd5 {[%emt 0:30:04]} cxd5 {[%emt 0:00:10]} 16. Bxd5 {[%emt 0:00:14]} Rfc8 {[%emt 0:00:56]} 17. Bxa8 {[%emt 0:10:41]} Qxc2+ {[%emt 0:12:47]} 18. Ka1 {[%emt 0:00:17]} Rxa8 {[%emt 0:28:45]} 19. Qa5 {[%emt 0:21:57]} h5 {[%emt 0:04:03]} 20. Rd2 {[%emt 0:12:37]} Qc4 {[%emt 0:02:05]} 21. Rhd1 {[%emt 0:01:58]} Kh7 {[%emt 0:00:49]} 22. h3 {[%emt 0:04:19]} Rc8 {[%emt 0:01:10]} 23. Rf2 {[%emt 0:01:17]} e4 {[%emt 0:02:20]} 24. fxe4 {[%emt 0:01:29]} Bd4 {[%emt 0:00:21]} 25. Rff1 {[%emt 0:03:06]} Bxe3 {[%emt 0:00:13]} 26. Qa3 {[%emt 0:00:26]} Rc6 {[%emt 0:01:54]} 27. Kb1 {[%emt 0:00:35]} Bh6 {[%emt 0:03:25]} 28. g4 {[%emt 0:00:29]} Ra6 {[%emt 0:00:15]} 29. Qb3 {[%emt 0:00:29]} Qxe4+ {[%emt 0:00:20] normal} 0-1

[Event "GER-ch Youth U14 2019"]
[Site "Willingen"]
[Date "2019.06.11"]
[Round "4.10"]
[White "Arakelian, Aik"]
[Black "Schauties, Nico Antonio"]
[Result "1-0"]
[ECO "D00"]
[WhiteElo "1911"]
[BlackElo "1866"]
[Annotator "NA"]
[PlyCount "51"]
[EventDate "2019.06.07"]
[EventType "swiss"]
[EventRounds "9"]
[EventCountry "GER"]
[SourceTitle "playchess.com"]
[Source "ChessBase"]
[SourceQuality "1"]
[TimeControl "40/5400+30:1800+30"]

1. d4 {[%emt 0:00:00]} d5 {[%emt 0:00:00]} 2. Nc3 {[%emt 0:00:21]} Nf6 {[%emt 0:00:50]} 3. Bf4 {[%emt 0:01:14]} Bf5 {[%emt 0:01:09]} 4. e3 {[%emt 0:00:27]} e6 {[%emt 0:00:34]} 5. Nb5 {[%emt 0:00:33]} Na6 {[%emt 0:01:00]} 6. a3 {[%emt 0:00:14]} c6 {[%emt 0:03:51]} 7. Nc3 {[%emt 0:00:13]} Nb8 {[%emt 0:05:09]} 8. Be2 {[%emt 0:02:34]} Bd6 {[%emt 0:01:10]} 9. g4 {[%emt 0:01:27]} Bg6 {[%emt 0:02:30]} 10. h4 {[%emt 0:01:01]} Bxf4 {[%emt 0:09:03]} 11. exf4 {[%emt 0:01:52]} h5 {[%emt 0:01:05]} 12. g5 {[%emt 0:01:27]} Ng8 {[%emt 0:01:58]} 13. Bd3 {[%emt 0:04:21]} Bxd3 {[%emt 0:03:41]} 14. Qxd3 {[%emt 0:00:10]} Ne7 {[%emt 0:00:29]} 15. Nge2 {[%emt 0:00:12]} Qc7 {[%emt 0:00:51]} 16. Qf3 {[%emt 0:03:23]} Nf5 {[%emt 0:01:02]} 17. O-O-O {[%emt 0:00:38]} Nd7 {[%emt 0:03:27]} 18. Ng3 {[%emt 0:00:52]} Nf8 {[%emt 0:17:46]} 19. Nxh5 {[%emt 0:20:14]} Ng6 {[%emt 0:04:41]} 20. Qg4 {[%emt 0:05:57]} O-O-O {[%emt 0:02:19]} 21. Ne2 {[%emt 0:02:44]} c5 {[%emt 0:08:35]} 22. Kb1 {[%emt 0:10:54]} cxd4 {[%emt 0:06:27]} 23. Nxd4 {[%emt 0:00:56]} Nfxh4 {[%emt 0:00:52]} 24. f5 {[%emt 0:05:39]} exf5 {[%emt 0:04:57]} 25. Nxf5 {[%emt 0:00:56]} Qd7 {[%emt 0:00:23]} 26. Rxd5 {[%emt 0:01:30] normal} 1-0

[Event "GER-ch Youth U14 2019"]
[Site "Willingen"]
[Date "2019.06.11"]
[Round "4.11"]
[White "Roehr, Oliver"]
[Black "Bress, Aaron"]
[Result "1-0"]
[ECO "B41"]
[WhiteElo "1960"]
[BlackElo "1849"]
[Annotator "NA"]
[PlyCount "73"]
[EventDate "2019.06.07"]
[EventType "swiss"]
[EventRounds "9"]
[EventCountry "GER"]
[SourceTitle "playchess.com"]
[Source "ChessBase"]
[SourceQuality "1"]
[TimeControl "40/5400+30:1800+30"]

1. e4 {[%emt 0:00:00]} c5 {[%emt 0:00:00]} 2. Nf3 {[%emt 0:00:00]} e6 {[%emt 0:00:00]} 3. d4 {[%emt 0:00:00]} cxd4 {[%emt 0:00:08]} 4. Nxd4 {[%emt 0:00:00]} a6 {[%emt 0:01:17]} 5. c4 {[%emt 0:00:09]} Qc7 {[%emt 0:03:49]} 6. Nc3 {[%emt 0:02:48]} Nf6 {[%emt 0:03:03]} 7. Be2 {[%emt 0:00:40]} Be7 {[%emt 0:08:24]} 8. O-O {[%emt 0:00:38]} O-O {[%emt 0:01:01]} 9. Qd3 {[%emt 0:08:35]} Nc6 {[%emt 0:07:09]} 10. Nxc6 {[%emt 0:02:15]} bxc6 {[%emt 0:07:58]} 11. f4 {[%emt 0:07:50]} d6 {[%emt 0:05:16]} 12. b4 {[%emt 0:13:31]} Rb8 {[%emt 0:08:55]} 13. a3 {[%emt 0:06:26]} Rd8 {[%emt 0:03:16]} 14. Bb2 {[%emt 0:09:04]} Bb7 {[%emt 0:07:09]} 15. f5 {[%emt 0:09:21]} e5 {[%emt 0:11:01]} 16. Bf3 {[%emt 0:02:54]} Rbc8 {[%emt 0:06:01]} 17. Kh1 {[%emt 0:01:55]} Nd7 {[%emt 0:03:40]} 18. a4 {[%emt 0:06:45]} Qb8 {[%emt 0:01:33]} 19. Rab1 {[%emt 0:04:31]} c5 {[%emt 0:04:09]} 20. b5 {[%emt 0:00:50]} a5 {[%emt 0:00:09]} 21. Rg1 {[%emt 0:01:46]} Qc7 {[%emt 0:06:35]} 22. Rbf1 {[%emt 0:01:06]} Nb6 {[%emt 0:01:26]} 23. g4 {[%emt 0:00:49]} Qd7 {[%emt 0:03:28]} 24. g5 {[%emt 0:00:53]} f6 {[%emt 0:03:18]} 25. Bc1 {[%emt 0:02:31]} fxg5 {[%emt 0:01:29]} 26. Bxg5 {[%emt 0:00:26]} Rf8 {[%emt 0:00:53]} 27. Rg4 {[%emt 0:03:36]} Bxg5 {[%emt 0:00:43]} 28. Rxg5 {[%emt 0:00:02]} Rf6 {[%emt 0:00:44]} 29. Rfg1 {[%emt 0:00:40]} Rcf8 {[%emt 0:00:56]} 30. Qf1 {[%emt 0:03:16]} R8f7 {[%emt 0:00:43]} 31. Rh5 {[%emt 0:03:03]} Kh8 {[%emt 0:00:36]} 32. Qh3 {[%emt 0:01:34]} h6 {[%emt 0:00:17]} 33. Be2 {[%emt 0:02:16]} Ba8 {[%emt 0:00:48]} 34. Qh4 {[%emt 0:01:24]} Bb7 {[%emt 0:00:30]} 35. Rhg5 {[%emt 0:01:38]} Kh7 {[%emt 0:00:32]} 36. R5g3 {[%emt 0:01:54]} Rxf5 {[%emt 0:00:30]} 37. Bg4 {[%emt 0:00:28] normal} 1-0

[Event "GER-ch Youth U14 2019"]
[Site "Willingen"]
[Date "2019.06.11"]
[Round "4.12"]
[White "Chassard, Cedric"]
[Black "Schubert, Nikita"]
[Result "1-0"]
[ECO "C54"]
[WhiteElo "1772"]
[BlackElo "1806"]
[Annotator "NA"]
[PlyCount "77"]
[EventDate "2019.06.07"]
[EventType "swiss"]
[EventRounds "9"]
[EventCountry "GER"]
[SourceTitle "playchess.com"]
[Source "ChessBase"]
[SourceQuality "1"]
[TimeControl "40/5400+30:1800+30"]

1. e4 {[%emt 0:00:00]} e5 {[%emt 0:00:00]} 2. Nf3 {[%emt 0:00:00]} Nc6 {[%emt 0:00:00]} 3. Bc4 {[%emt 0:00:00]} Bc5 {[%emt 0:00:00]} 4. c3 {[%emt 0:00:00]} Nf6 {[%emt 0:00:12]} 5. d4 {[%emt 0:00:00]} exd4 {[%emt 0:00:19]} 6. cxd4 {[%emt 0:00:00]} Bb4+ {[%emt 0:00:17]} 7. Nbd2 {[%emt 0:00:00]} d5 {[%emt 0:01:09]} 8. exd5 {[%emt 0:00:12]} Nxd5 {[%emt 0:00:59]} 9. O-O {[%emt 0:00:14]} O-O {[%emt 0:00:24]} 10. a3 {[%emt 0:00:40]} Bxd2 {[%emt 0:00:29]} 11. Bxd2 {[%emt 0:01:52]} Bg4 {[%emt 0:01:02]} 12. Bg5 {[%emt 0:12:19]} Qd7 {[%emt 0:08:38]} 13. Qd3 {[%emt 0:02:47]} Bxf3 {[%emt 0:16:49]} 14. Qxf3 {[%emt 0:01:13]} Nb6 {[%emt 0:00:12]} 15. Bd3 {[%emt 0:07:28]} Qxd4 {[%emt 0:09:03]} 16. Qe4 {[%emt 0:11:44]} f5 {[%emt 0:14:51]} 17. Qxd4 {[%emt 0:04:09]} Nxd4 {[%emt 0:00:11]} 18. Be7 {[%emt 0:01:46]} Rfe8 {[%emt 0:13:06]} 19. Bc5 {[%emt 0:03:02]} Ne2+ {[%emt 0:03:12]} 20. Kh1 {[%emt 0:01:02]} g6 {[%emt 0:02:11]} 21. Bxb6 {[%emt 0:06:52]} axb6 {[%emt 0:02:00]} 22. Rad1 {[%emt 0:01:26]} Kf8 {[%emt 0:04:49]} 23. Bc4 {[%emt 0:02:18]} Re7 {[%emt 0:01:00]} 24. g3 {[%emt 0:01:40]} Rae8 {[%emt 0:03:18]} 25. Rd2 {[%emt 0:01:59]} c6 {[%emt 0:06:49]} 26. a4 {[%emt 0:07:51]} Re4 {[%emt 0:01:15]} 27. b3 {[%emt 0:00:55]} R4e5 {[%emt 0:07:03]} 28. f4 {[%emt 0:03:48]} Re4 {[%emt 0:02:42]} 29. Rd6 {[%emt 0:02:54]} R8e7 {[%emt 0:01:15]} 30. Rfd1 {[%emt 0:03:52]} Nc3 {[%emt 0:00:30]} 31. Rd8+ {[%emt 0:02:02]} Kg7 {[%emt 0:00:23]} 32. R1d7 {[%emt 0:01:14]} Kh6 {[%emt 0:00:56]} 33. Kg2 {[%emt 0:02:27]} Kh5 {[%emt 0:00:30]} 34. Rd6 {[%emt 0:02:41]} Ne2 {[%emt 0:00:40]} 35. Rf8 {[%emt 0:01:48]} Nc1 {[%emt 0:00:27]} 36. Rg8 {[%emt 0:02:20]} Re3 {[%emt 0:00:25]} 37. Rdxg6 {[%emt 0:01:15]} Rd7 {[%emt 0:00:41]} 38. Rf6 {[%emt 0:01:44]} Ree7 {[%emt 0:00:33]} 39. Rg5# {[%emt 0:00:17] normal} 1-0

[Event "GER-ch Youth U14 2019"]
[Site "Willingen"]
[Date "2019.06.11"]
[Round "4.13"]
[White "Deutsch, Christoph"]
[Black "Rockmann, Enno"]
[Result "1-0"]
[ECO "C01"]
[WhiteElo "1937"]
[BlackElo "1527"]
[Annotator "NA"]
[PlyCount "81"]
[EventDate "2019.06.07"]
[EventType "swiss"]
[EventRounds "9"]
[EventCountry "GER"]
[SourceTitle "playchess.com"]
[Source "ChessBase"]
[SourceQuality "1"]
[TimeControl "40/5400+30:1800+30"]

1. e4 {[%emt 0:00:00]} e6 {[%emt 0:00:00]} 2. d4 {[%emt 0:00:00]} d5 {[%emt 0:00:00]} 3. exd5 {[%emt 0:00:00]} exd5 {[%emt 0:00:00]} 4. c4 {[%emt 0:00:00]} c6 {[%emt 0:00:00]} 5. Nc3 {[%emt 0:00:11]} Nf6 {[%emt 0:01:33]} 6. Bd3 {[%emt 0:00:10]} Bd6 {[%emt 0:01:03]} 7. Nge2 {[%emt 0:01:21]} Be6 {[%emt 0:01:51]} 8. c5 {[%emt 0:04:59]} Bc7 {[%emt 0:00:05]} 9. b4 {[%emt 0:00:32]} O-O {[%emt 0:00:41]} 10. Bg5 {[%emt 0:00:53]} Nbd7 {[%emt 0:01:21]} 11. O-O {[%emt 0:00:29]} Qe8 {[%emt 0:01:17]} 12. f3 {[%emt 0:00:57]} h6 {[%emt 0:01:27]} 13. Bh4 {[%emt 0:02:16]} Nh5 {[%emt 0:01:18]} 14. Qd2 {[%emt 0:03:08]} g5 {[%emt 0:05:28]} 15. Bg3 {[%emt 0:03:49]} Nxg3 {[%emt 0:00:09]} 16. Nxg3 {[%emt 0:00:10]} f5 {[%emt 0:02:08]} 17. Rae1 {[%emt 0:03:08]} Qf7 {[%emt 0:01:29]} 18. Nh1 {[%emt 0:02:26]} Rae8 {[%emt 0:02:11]} 19. Nf2 {[%emt 0:01:14]} Nf6 {[%emt 0:04:42]} 20. Bc2 {[%emt 0:04:07]} Qh5 {[%emt 0:01:17]} 21. Nh3 {[%emt 0:07:58]} g4 {[%emt 0:08:15]} 22. Nf4 {[%emt 0:00:07]} Qg5 {[%emt 0:02:53]} 23. fxg4 {[%emt 0:01:20]} Bd7 {[%emt 0:01:45]} 24. Rxe8 {[%emt 0:01:41]} Rxe8 {[%emt 0:00:27]} 25. Bxf5 {[%emt 0:01:19]} Bxf5 {[%emt 0:00:07]} 26. gxf5 {[%emt 0:00:08]} Nh5 {[%emt 0:00:46]} 27. Nce2 {[%emt 0:01:53]} Rxe2 {[%emt 0:01:22]} 28. Qxe2 {[%emt 0:00:46]} Nxf4 {[%emt 0:00:14]} 29. Qe8+ {[%emt 0:02:36]} Kg7 {[%emt 0:00:03]} 30. g3 {[%emt 0:03:52]} Nh5 {[%emt 0:15:55]} 31. Qd7+ {[%emt 0:01:44]} Kf6 {[%emt 0:01:52]} 32. Qxc7 {[%emt 0:00:10]} Qe3+ {[%emt 0:00:03]} 33. Kg2 {[%emt 0:00:13]} Qe2+ {[%emt 0:00:37]} 34. Rf2 {[%emt 0:00:14]} Qe4+ {[%emt 0:00:56]} 35. Kh3 {[%emt 0:00:10]} Kg5 {[%emt 0:00:52]} 36. Qd8+ {[%emt 0:02:24]} Nf6 {[%emt 0:00:47]} 37. Rf4 {[%emt 0:01:18]} Qe2 {[%emt 0:00:13]} 38. Qf8 {[%emt 0:01:10]} Qh5+ {[%emt 0:00:08]} 39. Rh4 {[%emt 0:00:04]} Qxh4+ {[%emt 0:02:43]} 40. gxh4+ {[%emt 0:00:07]} Kh5 {[%emt 0:00:03]} 41. Qf7# {[%emt 0:30:05] normal} 1-0

[Event "GER-ch Youth U14 2019"]
[Site "Willingen"]
[Date "2019.06.11"]
[Round "4.14"]
[White "Bornholdt, Joa Max"]
[Black "Haack, Kevin"]
[Result "0-1"]
[ECO "D35"]
[WhiteElo "1754"]
[BlackElo "2033"]
[Annotator "NA"]
[PlyCount "110"]
[EventDate "2019.06.07"]
[EventType "swiss"]
[EventRounds "9"]
[EventCountry "GER"]
[SourceTitle "playchess.com"]
[Source "ChessBase"]
[SourceQuality "1"]
[TimeControl "40/5400+30:1800+30"]

1. d4 {[%emt 0:00:00]} d5 {[%emt 0:00:00]} 2. c4 {[%emt 0:00:00]} e6 {[%emt 0:00:00]} 3. Nc3 {[%emt 0:00:00]} Nf6 {[%emt 0:00:00]} 4. cxd5 {[%emt 0:00:02]} exd5 {[%emt 0:00:00]} 5. Bg5 {[%emt 0:00:05]} Be7 {[%emt 0:00:07]} 6. e3 {[%emt 0:00:17]} c6 {[%emt 0:00:07]} 7. Bd3 {[%emt 0:00:07]} Nbd7 {[%emt 0:00:06]} 8. Nge2 {[%emt 0:00:56]} h6 {[%emt 0:00:09]} 9. Bh4 {[%emt 0:00:22]} Nh5 {[%emt 0:00:13]} 10. Bxe7 {[%emt 0:01:19]} Qxe7 {[%emt 0:00:08]} 11. O-O {[%emt 0:01:47]} O-O {[%emt 0:00:14]} 12. Qd2 {[%emt 0:00:51]} Nb6 {[%emt 0:00:27]} 13. Rae1 {[%emt 0:02:42]} Bd7 {[%emt 0:00:47]} 14. Bb1 {[%emt 0:08:58]} f5 {[%emt 0:03:06]} 15. Nc1 {[%emt 0:11:36]} Rae8 {[%emt 0:05:51]} 16. Nd3 {[%emt 0:07:05]} Nc4 {[%emt 0:12:07]} 17. Qe2 {[%emt 0:03:27]} Qg5 {[%emt 0:03:43]} 18. f4 {[%emt 0:11:21]} Qh4 {[%emt 0:09:04]} 19. Ne5 {[%emt 0:04:59]} Nxe5 {[%emt 0:01:17]} 20. dxe5 {[%emt 0:01:30]} g6 {[%emt 0:03:46]} 21. b4 {[%emt 0:05:46]} Qd8 {[%emt 0:05:39]} 22. Na4 {[%emt 0:06:10]} Ng7 {[%emt 0:02:08]} 23. Rc1 {[%emt 0:02:58]} Ne6 {[%emt 0:04:41]} 24. Nc5 {[%emt 0:02:57]} Qc7 {[%emt 0:02:04]} 25. Bd3 {[%emt 0:02:52]} b6 {[%emt 0:01:51]} 26. Nxe6 {[%emt 0:03:05]} Rxe6 {[%emt 0:05:41]} 27. Qc2 {[%emt 0:01:31]} h5 {[%emt 0:05:46]} 28. h4 {[%emt 0:03:52]} Bc8 {[%emt 0:02:17]} 29. Qb3 {[%emt 0:04:14]} Qd7 {[%emt 0:03:32]} 30. Rfd1 {[%emt 0:01:22]} Bb7 {[%emt 0:01:38]} 31. g3 {[%emt 0:00:58]} Qe7 {[%emt 0:02:18]} 32. Qa4 {[%emt 0:02:31]} Ra8 {[%emt 0:06:50]} 33. Qb3 {[%emt 0:02:46]} Rc8 {[%emt 0:02:26]} 34. Bf1 {[%emt 0:02:03]} c5 {[%emt 0:08:23]} 35. bxc5 {[%emt 0:00:15]} bxc5 {[%emt 0:00:42]} 36. Bg2 {[%emt 0:00:33]} c4 {[%emt 0:00:46]} 37. Qc3 {[%emt 0:03:33]} Qc5 {[%emt 0:03:46]} 38. Rd2 {[%emt 0:00:56]} Ra6 {[%emt 0:01:04]} 39. Kf2 {[%emt 0:01:41]} Ra3 {[%emt 0:01:35]} 40. Qd4 {[%emt 0:00:22]} Qxd4 {[%emt 0:00:43]} 41. exd4 {[%emt 0:03:16]} Kf7 {[%emt 0:04:47]} 42. Bf3 {[%emt 0:08:45]} Ke6 {[%emt 0:01:20]} 43. Rb2 {[%emt 0:04:20]} Bc6 {[%emt 0:00:59]} 44. Bd1 {[%emt 0:00:46]} c3 {[%emt 0:05:27]} 45. Rbc2 {[%emt 0:03:00]} Ba4 {[%emt 0:00:20]} 46. Re2 {[%emt 0:00:06]} Bxd1 {[%emt 0:03:12]} 47. Rxd1 {[%emt 0:00:11]} c2 {[%emt 0:00:03]} 48. Rc1 {[%emt 0:00:05]} Rxa2 {[%emt 0:00:08]} 49. Ke1 {[%emt 0:01:26]} Rc4 {[%emt 0:00:56]} 50. Rd2 {[%emt 0:00:22]} a5 {[%emt 0:00:27]} 51. Rd3 {[%emt 0:00:48]} a4 {[%emt 0:04:39]} 52. Kd2 {[%emt 0:00:56]} Rb2 {[%emt 0:01:39]} 53. Ra3 {[%emt 0:02:07]} Rb3 {[%emt 0:00:59]} 54. Ra2 {[%emt 0:00:45]} Rxg3 {[%emt 0:00:29]} 55. Rb2 {[%emt 0:00:48]} Rxd4+ {[%emt 0:02:50] normal} 0-1